fUST/lending_fUST_20260213
["ID","MTS","AMOUNT","RATE_DAILY","PERIOD"]
[405311949,1770975040157,-191.3754674,0.00036989,2]
[405311950,1770975040166,-151.0,0.00036989,31]
[405311951,1770975040176,-214.61923307,0.00036989,3]
[405311952,1770975040186,-5782.60560906,0.0003699,3]
[405311953,1770975040195,-590.52169454,0.00036998,2]
[405311954,1770975040204,-1000.0,0.00036998,2]
[405311955,1770975040214,-502.65558363,0.00036998,5]
[405311957,1770975040223,-517.61463132,0.00036998,5]
[405311959,1770975040233,-501.6626636,0.00036998,5]
[405311960,1770975040242,-502.58792684,0.00036998,2]
[405311961,1770975040252,-644.31531499,0.00036998,5]
[405311962,1770975040261,-500.0,0.00036998,5]
[405311964,1770975040270,-502.08032972,0.00036998,5]
[405311965,1770975040279,-633.15,0.00036998,5]
[405311966,1770975040288,-247.87284043,0.00036998,5]
[405311967,1770975040297,-500.0,0.00036998,2]
[405311968,1770975040306,-540.765459,0.00036998,5]
[405311969,1770975040315,-250.0,0.00036998,10]
[405311970,1770975040325,-250.0,0.00036998,10]
[405311971,1770975040334,-250.0,0.00036998,10]
[405311972,1770975040343,-250.0,0.00036998,10]
[405311973,1770975040352,-194.72792766,0.00036998,10]
[405311974,1770975040362,-250.0,0.00036998,10]
[405311975,1770975040372,-201.93286099,0.00036998,10]
[405311976,1770975040381,-250.0,0.00036998,10]
[405311977,1770975040391,-250.0,0.00036998,10]
[405311978,1770975040401,-209.40437684,0.00036998,10]
[405311979,1770975040410,-250.0,0.00036998,10]
[405311980,1770975040419,-217.15233878,0.00036998,10]
[405311981,1770975040429,-250.0,0.00036998,10]
[405311982,1770975040439,-225.18697532,0.00036998,10]
[405311983,1770975040449,-250.0,0.00036998,10]
[405311984,1770975040459,-233.51889341,0.00036998,10]
[405311985,1770975040469,-250.0,0.00036998,10]
[405311986,1770975040479,-242.15909246,0.00036998,10]
[405311987,1770975040489,-251.11897888,0.00036998,10]
[405311988,1770975040502,-260.4103811,0.00036998,10]
[405311989,1770975040512,-270.0455652,0.00036998,10]
[405311990,1770975040522,-280.03725112,0.00036998,10]
[405311991,1770975040531,-290.39862941,0.00036998,10]
[405311993,1770975040541,-301.1433787,0.00036998,10]
[405311994,1770975040550,-2000.0,0.00036999,120]
[405311995,1770975040559,-2208.53,0.00036999,120]
[405311996,1770975040570,-101059.53859294,0.00037,2]
[405311997,1770975040580,-91879.01016699,0.00037,9]
[405312022,1770975046626,-151.0,0.00035,31]
[405312023,1770975046636,-151.0,0.00035989,31]
[405312024,1770975046646,-151.0,0.0003599,31]
[405312025,1770975046656,-151.0,0.0003636,31]
[405312026,1770975046667,-503.24687056,0.00036988,5]
[405312027,1770975046679,-151.410452,0.00036988,31]
[405312028,1770975046692,-356.0,0.00036998,30]
[405312029,1770975046704,-388.0,0.00036998,30]
[405312030,1770975046715,-11432.8991834,0.00037,9]
[405312034,1770975119659,-1554.31853245,0.00024953,2]
[405312035,1770975479937,223.21,0.00013986,5]
[405312042,1770975681256,5000.0,0.000235,2]
[405312046,1770975796132,707.15633747,0.000235,2]
[405312047,1770975825858,5000.0,0.000235,2]
[405312048,1770975949129,-724.77076892,0.00024034,2]
[405312049,1770975992843,297.14427897,0.00013699,2]
[405312050,1770976025081,-163.67087295,0.00024034,2]
[405312051,1770976025118,-1634.07713604,0.00024034,2]
[405312052,1770976037090,-663.59784079,0.00024034,2]
[405312053,1770976041076,-844.54166638,0.00023794,2]
[405312054,1770976149077,-198.499,0.00023794,2]
[405312055,1770976158088,-1100.54,0.00023794,2]
[405312056,1770976174131,-2856.41933362,0.00023794,2]
[405312057,1770976174151,-150.0,0.00024035,2]
[405312058,1770976174171,-177.0,0.00026036,2]
[405312059,1770976174191,-300.0,0.00026845,2]
[405312060,1770976174209,-500.0,0.00026846,2]
[405312061,1770976174229,-500.0,0.00026846,2]
[405312062,1770976174249,-500.0,0.00026846,2]
[405312063,1770976174269,-500.0,0.00026846,2]
[405312064,1770976174289,-500.0,0.00026846,2]
[405312065,1770976174308,-505.62043428,0.00026846,2]
[405312066,1770976174330,-500.0,0.00026846,2]
[405312067,1770976174349,-500.0,0.00026846,2]
[405312068,1770976174367,-500.0,0.00026846,2]
[405312069,1770976174387,-500.0,0.00026846,2]
[405312070,1770976174407,-500.0,0.00026846,2]
[405312071,1770976174428,-500.0,0.00026846,2]
[405312072,1770976174446,-500.0,0.00026846,2]
[405312073,1770976174466,-500.0,0.00026846,2]
[405312074,1770976174485,-500.0,0.00026846,2]
[405312075,1770976174519,-507.01101328,0.00026846,2]
[405312076,1770976174540,-500.0,0.00026846,2]
[405312077,1770976174561,-380.88900059,0.00026846,2]
[405312078,1770976174582,-500.0,0.00026846,2]
[405312079,1770976174602,-500.0,0.00026846,2]
[405312080,1770976174623,-500.0,0.00026846,2]
[405312081,1770976174642,-500.0,0.00026846,2]
[405312082,1770976174662,-500.0,0.00026846,2]
[405312083,1770976174682,-500.0,0.00026846,2]
[405312084,1770976174702,-500.0,0.00026846,2]
[405312085,1770976174723,-500.0,0.00026846,2]
[405312086,1770976174744,-500.0,0.00026846,2]
[405312087,1770976174765,-500.0,0.00026846,2]
[405312088,1770976174785,-500.0,0.00026846,2]
[405312089,1770976174806,-500.0,0.00026846,2]
[405312090,1770976174825,-575.83320953,0.00026846,2]
[405312091,1770976174849,-500.0,0.00026846,2]
[405312092,1770976174870,-500.0,0.00026846,2]
[405312093,1770976174891,-523.38661377,0.00026846,2]
[405312094,1770976174913,-500.0,0.00026846,2]
[405312095,1770976174933,-500.0,0.00026846,2]
[405312096,1770976174954,-500.0,0.00026846,2]
[405312097,1770976174974,-500.0,0.00026846,2]
[405312098,1770976174995,-500.0,0.00026846,2]
[405312099,1770976175015,-500.0,0.00026846,2]
[405312100,1770976175151,-390.52992753,0.00026847,2]
[405312101,1770976175171,-288.66750425,0.00026848,2]
[405312102,1770976175191,-165.03422846,0.00028036,2]
[405312103,1770976175210,-420.0,0.00029027,2]
[405312104,1770976175228,-150.0,0.0003,2]
[405312105,1770976175248,-2030.32963244,0.00030228,7]
[405312129,1770976232505,-5000.0,0.00024953,2]
[405312130,1770976232515,-332.0888313,0.00030137,7]
[405312131,1770976232558,-327.0,0.00030137,7]
[405312147,1770976238591,-5000.0,0.00024703,2]
[405312148,1770976238601,-4229.9111687,0.00030137,7]
[405312149,1770976238611,-400.0,0.00030227,2]
[405312150,1770976238620,-2358.74648084,0.00030867,2]
[405312151,1770976238630,-202.06725297,0.00030966,2]
[405312152,1770976238640,-13177.9009633,0.00030967,2]
[405312154,1770976238650,-742.81808302,0.00032269,2]
[405312155,1770976238660,-2358.7464808,0.00032522,2]
[405312156,1770976238670,-239.0,0.0003257,2]
[405312157,1770976238680,-168.0,0.00033,14]
[405312158,1770976238691,-383.674186,0.00033134,2]
[405312159,1770976238700,-2358.7464808,0.00034177,2]
[405312160,1770976238710,-383.674186,0.00034529,2]
[405312161,1770976238719,-1809.31691949,0.00034999,2]
[405312175,1770976240786,-190.68308051,0.00034999,2]
[405312177,1770976240796,-291.0,0.00035302,30]
[405312179,1770976240805,-267.0,0.00035302,30]
[405312181,1770976240814,-198.8732989,0.00035342,5]
[405312355,1770976246889,-40.8141279,0.00035342,5]
[405312356,1770976246899,-150.0,0.00035342,5]
[405312357,1770976246908,-105.14690096,0.00035342,30]
[405312376,1770976514927,150.0,0.00021918,2]
[405312377,1770976515018,200.46356002,0.00022466,2]
[405312383,1770976919274,-2884.95333993,0.00024703,2]
[405312384,1770976919297,-2115.04666007,0.00024703,2]
[405312385,1770977147126,-1036.27945305,0.0002458,2]
[405312386,1770977228087,-490.87910061,0.0002458,2]
[405312387,1770977234123,-183.62171361,0.0002458,2]
[405312390,1770977237091,-575.67265479,0.0002458,2]
[405312391,1770977248080,-510.82930787,0.0002458,2]
[405312392,1770977283533,164.39,0.00013986,28]
[405312393,1770977283710,164.38,0.00013986,28]
[405312394,1770977351089,-5000.0,0.00024334,2]
[405312395,1770977351112,-150.0,0.00024767,2]
[405312396,1770977351133,-177.0,0.00026767,2]
[405312397,1770977351152,-1123.0,0.00026848,2]
[405312398,1770977351172,-204.0,0.00028767,2]
[405312399,1770977351195,-300.0,0.00029027,2]
[405312400,1770977351222,-500.0,0.00029028,2]
[405312401,1770977351244,-500.0,0.00029028,2]
[405312402,1770977351265,-500.0,0.00029028,2]
[405312403,1770977351288,-500.0,0.00029028,2]
[405312404,1770977351310,-457.52347026,0.00029028,2]
[405312425,1770977437687,-5000.0,0.00024091,2]
[405312426,1770977437698,-79.49579812,0.00026848,2]
[405312427,1770977438490,-1120.50420188,0.00026848,2]
[405312428,1770977438499,-434.48349772,0.00029026,2]
[405312429,1770977438509,-431.3339097,0.00029026,2]
[405312862,1770977444316,-5000.0,0.00024953,2]
[405312864,1770977444326,-68.6660903,0.00029026,2]
[405312866,1770977444336,-500.0,0.00029026,2]
[405312868,1770977444346,-500.0,0.00029026,2]
[405312870,1770977444355,-500.0,0.00029026,2]
[405312872,1770977444364,-500.0,0.00029026,2]
[405312874,1770977444374,-500.0,0.00029026,2]
[405312876,1770977444383,-402.43642142,0.00029026,2]
[405312878,1770977444392,-500.0,0.00029026,2]
[405312880,1770977444401,-500.0,0.00029026,2]
[405312882,1770977444410,-500.0,0.00029026,2]
[405312884,1770977444419,-500.0,0.00029026,2]
[405312886,1770977444429,-500.0,0.00029026,2]
[405312888,1770977444438,-500.0,0.00029026,2]
[405312890,1770977444447,-500.0,0.00029026,2]
[405312892,1770977444456,-500.0,0.00029026,2]
[405312894,1770977444466,-500.0,0.00029026,2]
[405312896,1770977444476,-500.0,0.00029026,2]
[405312898,1770977444486,-585.24758586,0.00029026,2]
[405312900,1770977444495,-500.0,0.00029026,2]
[405312903,1770977444505,-535.52125861,0.00029026,2]
[405312904,1770977444514,-500.0,0.00029026,2]
[405312906,1770977444523,-500.0,0.00029026,2]
[405312909,1770977444534,-500.0,0.00029026,2]
[405312910,1770977444543,-318.33530064,0.00029026,2]
[405312912,1770977444552,-300.0,0.00029027,2]
[405312914,1770977444561,-300.0,0.00029027,2]
[405312916,1770977444571,-300.0,0.00029027,2]
[405312918,1770977444580,-775.79334357,0.00029031,2]
[405312920,1770977444592,-471.93137945,0.00029031,2]
[405312923,1770977444603,-490.98393308,0.00029031,2]
[405312925,1770977444612,-182.0,0.000293,5]
[405312927,1770977444621,-500.0,0.00029387,2]
[405312929,1770977444630,-265.57674999,0.00029389,2]
[405312930,1770977444639,-1187.0131128,0.0002939,2]
[405312933,1770977444649,-2992.14315262,0.0002939,2]
[405313019,1770977445677,-10090.05289418,0.0002939,2]
[405313020,1770977445686,-1474.2165505,0.00030036,2]
[405313021,1770977445695,-500.0,0.00030136,2]
[405313022,1770977445704,-1115.01473111,0.00030137,2]
[405313023,1770977445712,-1115.01473111,0.00030304,5]
[405313024,1770977445721,-500.0,0.0003047,2]
[405313025,1770977445729,-1115.01473111,0.00030471,9]
[405313026,1770977445738,-500.0,0.00030636,2]
[405313027,1770977445747,-1115.01473111,0.00030637,13]
[405313028,1770977445756,-231.0,0.00030767,2]
[405313029,1770977445765,-1115.01473111,0.00030804,16]
[405313030,1770977445774,-1115.01473111,0.00030971,20]
[405313031,1770977445783,-1115.01473111,0.00031138,24]
[405313032,1770977445792,-767.16,0.00031204,28]
[405313033,1770977445801,-395.77305924,0.00031265,2]
[405313034,1770977445810,-1115.01473111,0.00031304,28]
[405313035,1770977445820,-420.0,0.00031316,2]
[405313036,1770977445829,-182.415506,0.0003134,2]
[405313037,1770977445839,-1115.01473111,0.00031471,31]
[405313038,1770977445848,-1115.01473111,0.00031638,35]
[405313039,1770977445858,-1115.01473111,0.00031805,39]
[405313040,1770977445868,-1474.2165505,0.0003181,2]
[405313041,1770977445878,-1115.01473111,0.00031972,42]
[405313042,1770977445887,-1115.01473111,0.00032138,46]
[405313043,1770977445898,-742.81808302,0.00032261,2]
[405313044,1770977445910,-1115.01473111,0.00032305,50]
[405313045,1770977445923,-1115.01473111,0.00032472,54]
[405313046,1770977445935,-1115.01473111,0.00032639,57]
[405313047,1770977445947,-1115.01473111,0.00032805,61]
[405313048,1770977445958,-712.39150662,0.00032848,2]
[405313049,1770977445970,-1115.01473111,0.00032972,65]
[405313050,1770977445981,-1187.0131128,0.00032989,2]
[405313051,1770977445991,-500.0,0.00033138,2]
[405313052,1770977446003,-549.5791557,0.00033138,2]
[405313053,1770977446015,-1115.01473111,0.00033139,69]
[405313054,1770977446026,-124.05800661,0.00033306,72]
[405313089,1770978101001,150.0,0.00016438,2]
[405313090,1770978101050,250.0,0.00016986,2]
[405313091,1770978101105,350.0,0.00017534,2]
[405313092,1770978101164,450.0,0.00018082,2]
[405313093,1770978101227,500.62752457,0.0001863,2]
[405313096,1770978342153,-898.5985321,0.0002411,2]
[405313102,1770978431440,5000.0,0.000235,2]
[405313103,1770978445085,-333.9227,0.00023869,2]
[405313104,1770978445106,-208.01,0.000246,2]
[405313105,1770978445126,-150.0,0.00024629,2]
[405313106,1770978445147,-90.75449407,0.00026629,2]
[405313107,1770978450085,-86.24550593,0.00026629,2]
[405313108,1770978450106,-205.7731286,0.00028455,2]
[405313109,1770978450128,-248.53558068,0.00028629,2]
[405313110,1770978450150,-37.17844944,0.00030128,2]
[405313112,1770978549344,-5000.0,0.00024953,2]
[405313113,1770978549368,-3024.21473036,0.0003,2]
[405313114,1770978597571,2568.96,0.000235,2]
[405313115,1770978617335,500.0,0.00021918,2]
[405313116,1770978617389,1000.0,0.0002274,2]
[405313153,1770978637805,-1500.0,0.00023562,2]
[405313154,1770978637816,-663.66284528,0.00024384,2]
[405313155,1770978637824,-2935.85775048,0.00024953,2]
[405313156,1770978637837,-2064.14224952,0.00024953,2]
[405313157,1770978637847,-287.24973176,0.00026848,2]
[405313158,1770978637856,-281.72458429,0.00026848,2]
[405313159,1770978637865,-590.92614452,0.00026848,2]
[405313160,1770978637875,-155.82626905,0.00026848,2]
[405313161,1770978637884,-185.90372499,0.00029999,2]
[405313162,1770978637894,-867.63698616,0.0003,2]
[405313163,1770978637904,-13233.75963779,0.0003,2]
[405313384,1770978644370,-5195.10115613,0.0003,2]
[405313385,1770978644380,-432.47179338,0.00030128,2]
[405313386,1770978644390,-178.65892144,0.00030128,2]
[405313387,1770978644399,-2756.78548665,0.00030646,2]
[405313393,1770978719838,-1235.344561,0.00024953,2]
[405313399,1770979126522,5000.0,0.000235,2]
[405313400,1770979148170,5000.0,0.000235,2]
[405313401,1770979226423,5000.0,0.000235,2]
[405313402,1770979551145,-742.15354524,0.00024041,2]
[405313403,1770979640169,-150.0,0.00024163,2]
[405313404,1770979640189,-688.35621915,0.00024497,2]
[405313405,1770979648137,-1489.03159379,0.00023801,2]
[405313406,1770979649082,-655.01132317,0.00023801,2]
[405313407,1770979761115,-2855.95708304,0.00023801,2]
[405313408,1770979761142,-300.0,0.00024595,2]
[405313409,1770979761166,-11296.29546168,0.00024596,2]
[405313410,1770979761189,-500.0,0.00024596,2]
[405313411,1770979761212,-307.79346763,0.00024596,2]
[405313412,1770979761234,-502.92551482,0.00024596,2]
[405313413,1770979761260,-500.0,0.00024596,2]
[405313414,1770979761286,-500.0,0.00024596,2]
[405313415,1770979761311,-500.0,0.00024596,2]
[405313416,1770979761336,-500.0,0.00024596,2]
[405313417,1770979761358,-250.0,0.00024596,2]
[405313418,1770979761381,-500.0,0.00024596,2]
[405313419,1770979761404,-314.26536855,0.00024596,2]
[405313420,1770979761432,-500.0,0.00024596,2]
[405313421,1770979761459,-500.0,0.00024596,2]
[405313422,1770979761485,-500.0,0.00024596,2]
[405313423,1770979761506,-500.0,0.00024596,2]
[405313424,1770979761530,-500.0,0.00024596,2]
[405313425,1770979761554,-500.0,0.00024596,2]
[405313426,1770979761579,-500.0,0.00024596,2]
[405313427,1770979761603,-500.0,0.00024596,2]
[405313428,1770979761626,-500.0,0.00024596,2]
[405313429,1770979761649,-500.0,0.00024596,2]
[405313430,1770979761672,-500.0,0.00024596,2]
[405313431,1770979761695,-500.0,0.00024596,2]
[405313432,1770979761718,-431.95020745,0.00024596,2]
[405313433,1770979761740,-500.0,0.00024596,2]
[405313434,1770979761762,-500.0,0.00024596,2]
[405313435,1770979761784,-500.0,0.00024596,2]
[405313436,1770979761807,-500.0,0.00024596,2]
[405313437,1770979761829,-500.0,0.00024596,2]
[405313438,1770979761852,-500.0,0.00024596,2]
[405313439,1770979761874,-500.0,0.00024596,2]
[405313440,1770979761897,-500.0,0.00024596,2]
[405313441,1770979761920,-500.0,0.00024596,2]
[405313442,1770979761942,-500.0,0.00024596,2]
[405313443,1770979761965,-500.0,0.00024596,2]
[405313444,1770979761988,-500.0,0.00024596,2]
[405313445,1770979762009,-605.28986497,0.00024596,2]
[405313446,1770979762031,-500.0,0.00024596,2]
[405313447,1770979762052,-328.70240689,0.00024596,2]
[405313448,1770979762075,-500.0,0.00024596,2]
[405313449,1770979762097,-13.08522363,0.00024596,2]
[405313450,1770979769081,-5000.0,0.0002435,2]
[405313451,1770979769107,-378.45975931,0.00024596,2]
[405313460,1770979831933,-2444.68307728,0.0002435,2]
[405313461,1770979831986,-2555.31692272,0.0002435,2]
[405313462,1770979831995,-150.0,0.00024596,2]
[405313463,1770979832005,-1200.0,0.00025203,2]
[405313464,1770979832016,-151.0,0.00025204,2]
[405313465,1770979832026,-151.0,0.00025204,2]
[405313466,1770979832035,-243.00728,0.00025966,2]
[405313467,1770979832044,-271.68866011,0.00026029,2]
[405313468,1770979832054,-300.0,0.00026181,2]
[405313469,1770979832063,-3209.4053704,0.00026182,2]
[405313470,1770979832073,-189.0,0.00026596,2]
[405313471,1770979832083,-375.11844,0.00026778,2]
[405313472,1770979832093,-375.11844,0.00026778,2]
[405313473,1770979832102,-375.11844,0.00026778,2]
[405313474,1770979832112,-375.11844,0.00026778,2]
[405313475,1770979832121,-377.005805,0.00027397,2]
[405313476,1770979832131,-377.005805,0.00027397,2]
[405313478,1770979832140,-377.005805,0.00027397,2]
[405313480,1770979832150,-201.44372922,0.00027397,2]
[405313484,1770979838028,-5000.0,0.00024953,2]
[405313485,1770979838039,-472.38243081,0.00026181,2]
[405313486,1770979838052,-27.61756919,0.00026181,2]
[405313487,1770979838063,-500.0,0.00026181,2]
[405313488,1770979838073,-159.10557861,0.00026181,2]
[405313489,1770979838084,-175.56207578,0.00027397,2]
[405313490,1770979838093,-531.0,0.00027421,2]
[405313491,1770979838102,-1000.51761895,0.00028,5]
[405313492,1770979838112,-251.39904631,0.00028014,2]
[405313493,1770979838122,-280.38334557,0.00028194,2]
[405313494,1770979838131,-504.69002202,0.00028194,2]
[405313495,1770979838141,-897.22670582,0.00028194,2]
[405313496,1770979838151,-312.29077579,0.00028215,2]
[405313497,1770979838160,-555.1836014,0.00028215,2]
[405313498,1770979838170,-420.0,0.00028328,2]
[405313499,1770979838179,-353.21540388,0.00028622,2]
[405313500,1770979838188,-403.67474729,0.00028622,2]
[405313501,1770979838198,-1936.55252421,0.0002941,2]
[405313769,1770979845449,-966.23674689,0.0002941,2]
[405313770,1770979845458,-157.1594305,0.0002941,2]
[405313771,1770979845468,-151.0,0.0002941,7]
[405313772,1770979845477,-151.0,0.0002941,7]
[405313773,1770979845487,-375.11844,0.0002941,7]
[405313774,1770979845496,-69.71390307,0.0002941,7]
[405313775,1770979845508,-305.40453693,0.0002941,7]
[405313776,1770979845517,-375.11844,0.0002941,7]
[405313777,1770979845527,-375.11844,0.0002941,7]
[405313778,1770979845536,-377.005805,0.0002941,7]
[405313779,1770979845545,-377.005805,0.0002941,7]
[405313780,1770979845555,-377.005805,0.0002941,7]
[405313783,1770979845565,-377.005805,0.0002941,7]
[405313786,1770979845574,-21.02607119,0.00029678,2]
[405313801,1770979846187,-152.46880425,0.00029678,2]
[405313802,1770979846198,-396.2532,0.00029794,2]
[405313803,1770979846207,-500.0,0.00029999,2]
[405313804,1770979846217,-881.58375539,0.00030126,2]
[405313805,1770979846227,-383.84098698,0.00030128,2]
[405313806,1770979846236,-542.38430156,0.00030128,3]
[405313807,1770979846246,-160.73390289,0.00030128,2]
[405313808,1770979846255,-208.8404128,0.00030128,2]
[405313809,1770979846264,-375.91274304,0.00030128,2]
[405313810,1770979846273,-668.28932096,0.00030128,2]
[405313811,1770979846282,-1266.47378955,0.00030128,2]
[405313812,1770979846292,-289.03170418,0.00030133,2]
[405313813,1770979846301,-15114.12850949,0.00030136,8]
[405313814,1770979846312,-2643.18,0.00030136,8]
[405313815,1770979846323,-11109.8123531,0.00030136,8]
[405313823,1770980519365,-237.10972926,0.00023866,2]
[405313824,1770980519380,-4762.89027074,0.00023866,2]
[405313825,1770980519389,-237.10972926,0.00024141,2]
[405313826,1770980522482,5000.0,0.000235,2]
[405313828,1770980728235,458.4935843,0.00013273,2]
[405313829,1770980737726,5000.0,0.000235,2]
[405313830,1770980743140,-204.0,0.00023946,2]
[405313831,1770980743159,-499.57424444,0.00024597,2]
[405313832,1770980743177,-242.74378812,0.000247,2]
[405313833,1770980743196,-60.54882971,0.00026844,2]
[405313835,1770980827124,-1403.43673802,0.00024953,2]
[405313836,1770980830173,-757.29451829,0.00024953,2]
[405313837,1770980832089,-490.87910061,0.00024953,2]
[405313838,1770980846101,-762.25562163,0.00024953,2]
[405313839,1770980958090,-5000.0,0.00024703,2]
[405313840,1770980958111,-524.65098898,0.00025153,3]
[405313841,1770980958130,-238.34254765,0.00025831,2]
[405313842,1770980958151,-172.79576676,0.00025831,2]
[405313843,1770980958173,-987.87576871,0.00026581,3]
[405313844,1770980958192,-257.5900613,0.00027165,2]
[405313845,1770980958213,-286.20382007,0.00027191,2]
[405313846,1770980958236,-1451.10054844,0.00028217,3]
[405313847,1770980958256,-300.0,0.00028301,2]
[405313848,1770980958277,-500.0,0.00028302,2]
[405313849,1770980958298,-81.44049809,0.00028302,2]
[405313861,1770981032132,-2687.317197,0.00024953,2]
[405313897,1770981038201,-155.93741534,0.00024953,2]
[405313908,1770981040361,-2156.74538766,0.00024953,2]
[405313910,1770981040371,-124.45074663,0.00028202,2]
[405314099,1770981046335,-642.23835154,0.00024953,2]
[405314100,1770981046399,-1313.55340522,0.00024953,2]
[405314101,1770981046409,-164.04891235,0.00028202,2]
[405314102,1770981046422,-500.0,0.00028766,2]
[405314104,1770981046431,-608.45501706,0.00028766,2]
[405314106,1770981046440,-500.0,0.00028766,2]
[405314107,1770981046451,-168.55950191,0.00028766,2]
[405314108,1770981046460,-289.47665166,0.00028766,2]
[405314109,1770981046469,-458.4935843,0.00028767,2]
[405314110,1770981046478,-471.9313794,0.00029217,2]
[405314111,1770981046489,-3036.4228355,0.00029217,2]
[405314112,1770981046498,-735.20217612,0.00029854,3]
[405314114,1770981418120,9611.61863,0.0002349,2]
[405314115,1770981836850,303.10001603,0.000189,2]
[405314116,1770981935238,-333.9227,0.00024703,2]
[405314117,1770981935259,-575.50266512,0.00024953,2]
[405314120,1770982026090,-323.09586698,0.0002458,2]
[405314121,1770982026113,-150.0,0.00024828,2]
[405314122,1770982026135,-123.08909337,0.00025027,3]
[405314123,1770982039078,-255.72945182,0.00025027,3]
[405314124,1770982047072,-112.88242103,0.00025027,3]
[405314125,1770982047093,-675.37167555,0.00026053,2]
[405314135,1770982164083,-1891.64143428,0.00024953,2]
[405314136,1770982164104,-504.58741316,0.00025153,3]
[405314137,1770982164123,-208.01,0.00026,2]
[405314138,1770982164142,-5541.03218955,0.00026053,2]
[405314139,1770982164162,-243.007281,0.00026391,2]
[405314140,1770982164182,-848.0,0.00026391,2]
[405314141,1770982164201,-500.0,0.00026573,2]
[405314142,1770982164222,-500.0,0.00026573,2]
[405314143,1770982164242,-500.0,0.00026573,2]
[405314144,1770982164263,-500.0,0.00026573,2]
[405314145,1770982164282,-500.0,0.00026573,2]
[405314146,1770982164301,-500.0,0.00026573,2]
[405314147,1770982164323,-500.0,0.00026573,2]
[405314148,1770982164344,-500.0,0.00026573,2]
[405314149,1770982164364,-394.76898636,0.00026573,2]
[405314150,1770982164383,-500.0,0.00026573,2]
[405314151,1770982164402,-500.0,0.00026573,2]
[405314152,1770982164422,-500.0,0.00026573,2]
[405314153,1770982164440,-395.09743628,0.00026573,2]
[405314154,1770982164459,-500.0,0.00026573,2]
[405314155,1770982164478,-500.0,0.00026573,2]
[405314156,1770982164496,-500.0,0.00026573,2]
[405314157,1770982164515,-500.0,0.00026573,2]
[405314158,1770982164534,-500.0,0.00026573,2]
[405314159,1770982164553,-500.0,0.00026573,2]
[405314160,1770982164573,-500.0,0.00026573,2]
[405314161,1770982164594,-500.0,0.00026573,2]
[405314162,1770982164613,-500.0,0.00026573,2]
[405314163,1770982164633,-500.0,0.00026573,2]
[405314164,1770982164653,-500.0,0.00026573,2]
[405314165,1770982164672,-500.0,0.00026573,2]
[405314166,1770982164692,-500.0,0.00026573,2]
[405314167,1770982164711,-381.66369019,0.00026573,2]
[405314168,1770982164731,-500.0,0.00026573,2]
[405314169,1770982164752,-943.00525052,0.00026584,3]
[405314170,1770982164771,-177.0,0.00026828,2]
[405314171,1770982164792,-150.0,0.00027703,2]
[405314172,1770982164811,-200.0,0.00027758,2]
[405314173,1770982164831,-1200.0,0.00027877,2]
[405314174,1770982164849,-1063.20507704,0.00027877,2]
[405314175,1770982214818,500.08467729,0.00013273,2]
[405314185,1770982232269,-151.1745913,0.00026673,2]
[405314186,1770982232283,-500.0,0.00027976,2]
[405314187,1770982232293,-500.0,0.00027976,2]
[405314188,1770982232302,-914.0,0.00027978,2]
[405314189,1770982232311,-226.203483,0.00027979,7]
[405314190,1770982232320,-226.203483,0.00027979,7]
[405314191,1770982232330,-226.203483,0.00027979,7]
[405314192,1770982232339,-226.203483,0.00027979,7]
[405314193,1770982232349,-884.56775805,0.00027982,2]
[405314541,1770982244491,-500.0,0.00026573,2]
[405314542,1770982244500,-651.42888695,0.00026573,2]
[405314543,1770982244510,-424.90207843,0.00027876,2]
[405314544,1770982244519,-941.80770854,0.00027982,2]